Workbook

Sheet 현황
A2: 연도 | B2: 과 제 명
A3: 2008 | B3: 전력시장 종합분석 시스템의 진단기법 정립에 관한 연구
B4: 전력시장 여건변화를 반영한 전력수급계획 개선방안 연구
B5: 전력수요예측시 수요관리 반영방법 개선방안 연구
B6: 직접구매 활성화를 위한 직접구매제도 개선방안 검토
B7: 선형계획법 기반 전력계통계획 최적화 전산모형 개발
B8: 스마트그리드 기반 시장환경에서의 전력거래소 대응전략 로드맵
B9: 휴전검토 종합시스템 개발
B10: 전력시장의 효율성 평가방법 연구
B11: 광역정전 예방을 위한 제어전략 수립에 관한 연구
A12: 2009 | B12: 전력계통 Data 정도 향상을 위한 토폴로지 보정방안 연구
B13: 비용함수가 발전계획에 미치는 영향 분석과 함수산정 개선 및 적용방안에 관한 연구
B14: 합리적이고 공정한 SMP보정계수 산정기준 정립에 관한 연구
B15: 시장 참여자의 규칙 위반시 제재방안에 관한 연구
B16: 계통기여도에 기반한 무효전력서비스 평가 및 예비력 확보기준 개발
B17: 공급신뢰도 기준(LOLP) 재정립 연구
B18: 제2단계 배출권 모의거래 자문,분석 및 해외 시장조사에 관한 연구
B19: CBP전력시장 경쟁강화를 위한 시장제도 선진화
B20: 전력거래소의 스마트그리드 도입을 위한 제반환경 구축방안 연구
B21: KPX 비전 및 중장기 경영전략 재정립
A22: 2010 | B22: 단기 전력수요 예측 기법 및 적용방안에 관한 연구
B23: 신재생에너지 공급의무화제도(RPS) 도입이 전력수급기본계획에 미치는 영향 분석
B24: 제주지역 운영예비력 산정기준 연구
B25: 전력계통 안정도 해석 정확도 향상을 위한 부하모델 재구축
B26: 기저발전기 및 신재생전원 확대에 따른 계통안정운영 방안에 관한 연구
B27: 지역별 적정 무효전력 예비력 산정에 관한 연구
B28: 스마트그리드 기반 계통운영 및 정보전달 체계 정립에 관한 연구
A29: 2011 | B29: 계통규모 확대에 따른 적정 공급 및 운영예비력 산정에 대한 연구
B30: 비상시 비중앙급전발전기의 합리적 계통운영 방안에 대한 연구
B31: 수요예측결과 적정성 검증 기준 및 신뢰구간 설정 기준에 관한 연구
B32: 스마트그리드에서 DR이 장기전력수요에 미치는 영향 연구
B33: 중장기 인력운영 전략체계 수립 및 개발
B34: 발전기 과도안정도 개선을 위한 제어기술 연구
B35: 전력계통 신뢰도 향상을 통한 취약계통 구성방안 수립에 관한 연구
B36: 배출권 거래제 제정에 따른 전력부문 대응방안 기초연구
B37: 송전선로 재폐로계전기 운영방안 적정성 확립에 관한 연구
B38: 중장기 전력소매경쟁에 대비한 국내외 사례조사에 관한 기초 연구
B39: 전력시장에서 전력수급안정을 위한 가격제도 정립에 관한 연구
B40: 스마트그리드 구축시 기반시설 정보보안 정책에 관한 연구
B41: 실시간 요금제의 단계적 도입방안에 대한 연구
B42: SG 사업 활성화를 위한 기반구축사업자의 역할 및 유관 법제도 개선방안 연구
B43: 전력계통 해석용 시뮬레이터(RTDS)를 활용한 전계통 정전시 복구계획 모의
B44: 제주계통 환경변화를 고려한 적정 부하차단방식에 관한 연구
B45: 전력계통자료 취득용 원격소장치 관리체계 개선에 관한 연구
A46: 2012 | B46: 전력 계통 과도안정도 해석 및 검토주기 기준 수립
B47: 전력계통 고장전류 해석기준 수립
B48: 계통신뢰도를 고려한 양수발전기 운영방안에 관한 연구
B49: CBP시장에서의 송전손실계수 산정결과 적정성 분석 및 송전손실계수 변화요인 연구
B50: 발전기 기동비용 산정 및 적용기준 개선방안 연구
B51: 민간 석탄발전기 전력시장 진입에 따른 합리적인 석탄발전기 정산방안 연구
B52: 단기 전력수요예측 시의 에너지 전환수요 적용방안 연구
B53: 자본자산가격결정모형을 이용한 한전과 발전자회사 위험차이 산정방안 연구
B54: Smart Grid 활성화 및 전력수급 안정을 위한 BESS 도입방안 연구
B55: 전력산업 환경변화를 고려한 전력거래소 중장기 발전방안 연구
B56: 제2의 9.15순환단전을 방지하기 위한 종합대책수립에 관한 연구
B57: 스마트그리드 환경에서 가상발전기(Virtual Power Plant)의 전력시장 참여를 위한 제도적∙기술적 선결사항에 관한 연구
A58: 2013 | B58: 제6차 전력수급 기본계획의 수요관리 정책방향 수립에 관한 연구
B59: EMS〜RTU구간의 시리얼 기반 DNP통신 보안성 확보방안 및 인터넷 기반 프로토콜 수용에 관한 연구
B60: CBP 전력시장에서 수요자원 반영 방안에 관한 연구
B61: 전력계통 규모 확장에 따른 154kV 계통기준전압 적정성에 관한 연구
B62: 전문가 기법을 이용한 주·월간 전력수요 예측 기법 및 적용 방안에 관한 연구
B63: 신재생에너지 설비의 대규모화에 따른 수급계획 수립 방안 연구
B64: 미래 전원믹스 전략 수립을 위한 전원별 히든 코스트(Hidden Cost) 적용방안에 관한 연구
B65: 비중앙급전발전기 공급능력 산정에 관한 연구
B66: 과도안정도 확보용 고장파급방지장치에 의한 발전차단 한계량 및 기준 정립에 관한 연구
B67: 판매사업자 진입 활성화를 위한 법.제도 개선방안 연구
B68: 용량요금제도 개선 및 용량시장 도입에 관한 연구
B69: 공공기관 수요관리 활성화 방안 연구

Sheet 12년예산편성기초자료
A1: 2012년 신규
B2: 과 제 명 | C2: 구분 | D2: 시작 | E2: 종료 | F2: 수행부서 | G2: 총예산(천원) | H2: '12년예산 | I2: 비고
B3: 전력계통 고장전류 해석기준 수립 | C3: 위탁(공동) | D3: '12.01.01. | E3: '12.12.31. | F3: 계통기술팀 | G3: 134979 | H3: 134979 | I3: '12년 신규
B4: 고장파급방지장치 적용기준 정립에 관한 연구 | C4: 위탁(공동) | D4: '12.05.01. | E4: '13.04.30. | F4: 계통기술팀 | G4: 83493 | H4: 68076 | I4: '12년 신규
B5: 첨두부하 경감 및 부하평준화용 에너지저장장치 용량산정 기법개발 연구 | C5: 위탁(공동) | D5: '12.01. | E5: '12.12. | F5: 전력기술팀 | G5: 100000 | H5: 20000 | I5: '12년 신규
B6: 국내외 수요반응 현황 및 부하 감축량 평가기법 개발 | C6: 위탁 | D6: '12.03.01. | E6: '13.08.30. | F6: 수요시장팀 | G6: 113506 | H6: 113506 | I6: '12년 신규
B7: 고장전류 및 과부하 제약을 고려한 전력계통 재구성 알고리즘 개발 | C7: 위탁(공동) | D7: '12.03. | E7: '13.08. | F7: 송전운영계획팀 | G7: 126328 | H7: 70181 | I7: '12년 신규
B8: 전력수급 비상하에서 배전전압 조정시 전력계통 영향평가 | C8: 위탁 | D8: '12.03. | E8: '12.12. | F8: 수급계획팀 | G8: 210141 | H8: 210141 | I8: '12년 신규
B9: 대기전력이 전력수요에 미치는 영향 | C9: 위탁 | D9: '12.05. | E9: '12.10. | F9: 수급계획팀 | G9: 103076 | H9: 103076 | I9: '12년 신규
B10: 발전기 기동비용 산정 및 적용기준 개선방안 연구 | C10: 위탁(공동) | D10: '12.10. | E10: '13.09. | F10: 시장운영팀 | G10: 91041 | H10: 91041 | I10: '12년 신규
B11: SG환경하에서 VPP전력시장 참여를 위한 선결과제 연구 | C11: 위탁 | D11: '12. | E11: '12. | F11: 스마트그리드팀 | G11: 97195 | H11: 97195 | I11: '12년 신규
F12: 합계 | G12: =SUM(G3:G11) -> 1059759 | H12: =SUM(H3:H11) -> 908195
A14: 2012년 계속 / 2012년 종료
B15: 과 제 명 | C15: 구분 | D15: 시작 | E15: 종료 | F15: 수행부서 | G15: 총예산(천원) | H15: '12년예산 | I15: 비고
B16: 전력계통 안정도 해석 정확도 향상을 위한 부하모델 재구축 | C16: 위탁(공동) | D16: '10.07.23 | E16: '12.01.22 | F16: 계통기술팀 | G16: 208325 | H16: 37203
B17: 지역별 적정 무효전력 예비력 산정에 관한 연구 | C17: 위탁(공동) | D17: '10.12.10 | E17: '12.06.09 | F17: 계통기술팀 | G17: 150786 | H17: 43075
B18: 스마트그리드에서 DR이 장기전력수요에 미치는 영향 연구 | C18: 위탁 | D18: '11.04.19 | E18: '12.01.18 | F18: 수요예측팀 | G18: 76669 | H18: 25557 | I18: '11년 신규
B19: 발전기 과도안정도 개선을 위한 제어기술 연구 | C19: 위탁(공동) | D19: '11.04.13 | E19: '12.04.12 | F19: 계통기술팀 | G19: 136581 | H19: 29430 | I19: '11년 신규
B20: 전력계통 신뢰도 향상을 위한 취약계통 계통구성방안 수립에 관한 연구 | C20: 위탁(공동) | D20: '11.04.11 | E20: '12.04.10 | F20: 계통기술팀 | G20: 98340 | H20: 22570 | I20: '11년 신규
B21: 중장기 전력소매경쟁에 대비한 국내외 사례조사에 관한 기초 연구 | C21: 위탁(공동) | D21: '11.05.18 | E21: '12.08.17 | F21: 미래전략팀 | G21: 383337 | H21: 147605 | I21: '11년 신규
B22: 스마트그리드 구축시 기반시설 정보보안 정책에 관한 연구 | C22: 위탁(공동) | D22: '11.09.21 | E22: '12.09.20 | F22: IT총괄보호팀 | G22: 131148 | H22: 85136 | I22: '11년 신규
B23: 실시간 요금제의 단계적 도입방안에 대한 연구 | C23: 위탁(공동) | F23: 스마트그리드팀 | G23: 165757 | H23: 165757 | I23: 협약미체결
B24: SG 사업 활성화를 위한 기반구축사업자의 역할 및 유관 법제도 개선방안 연구 | C24: 위탁(공동) | F24: 스마트그리드팀 | G24: 95300 | H24: 95300 | I24: 협약미체결
B25: 전력계통 해석용 시뮬레이터(RTDS)를 활용한 전계통 정전시 복구계획 모의 | F25: 송전운영계획팀 | G25: 29185 | H25: 29185 | I25: 협약미체결
B26: 제주계통 환경변화를 고려한 적정 부하차단방식에 관한 연구 | D26: '11.10.14 | E26: '12.10.13 | F26: 계통보호팀 | G26: 89609 | H26: 78548
B27: 전력계통자료 취득용 원격소장치 관리체계 개선에 관한 연구 | F27: 계통시스템팀 | G27: 119778 | H27: 119778 | I27: 협약미체결
B28: 전기용 냉난방기기 보급률·사용행태 조사 및 이를 이용한 수요예측 방법 연구 | C28: 수탁 | D28: '10.06.01 | E28: '12.02.29 | F28: 수요예측팀
B29: 장기 수요예측 정확도 향상을 위한 개선방안 연구 | C29: 수탁 | D29: '11.04. | E29: '12.01. | F29: 수요예측팀 | I29: '11년 신규
B30: 전력수급계획 수립을 위한 기술지침 개발(3차년도 연구) | C30: 수탁 | D30: '11.04.01 | E30: '12.03.31 | F30: 전력계획팀 | I30: '11년 신규
F31: 합계 | G31: =SUM(G16:G30) -> 1684815 | H31: =SUM(H16:H30) -> 879144
A33: 2012년 계속 / 2013년 종료
B34: 과 제 명 | C34: 구분 | D34: 시작 | E34: 종료 | F34: 수행부서 | G34: 총예산(천원) | H34: '12년예산 | I34: 비고
B35: 송전선로 재폐로계전기 운영방안 적정성 확립에 관한 연구 | C35: 위탁(공동) | D35: '11.05.16 | E35: '13.01.15 | F35: 계통보호팀 | G35: 268504 | H35: 128240 | I35: '11년 신규
B36: 실시간 전력수요자원 운영시스템 개발 | C36: 수탁 | D36: '08.12. | E36: '13.11. | F36: 수요시장팀
B37: 스마트그리드 실증단지 구축사업(Smart Electricity Service 분야) | C37: 수탁 | D37: '09.12.01 | E37: '13.05.31 | F37: 시장기획팀
F38: 합계 | G38: =SUM(G35:G37) -> 268504 | H38: =SUM(H35:H37) -> 128240
A40: 2012년 계속 / 2013년 계속
B41: 과 제 명 | C41: 구분 | D41: 시작 | E41: 종료 | F41: 수행부서 | G41: 총예산(천원) | H41: '12년예산 | I41: 비고
B42: 광역정전 제로화를 위한 Synchro-Phasor 감시 및 제어기술 개발 | C42: 수탁 | D42: '10.06. | E42: '14.05. | F42: 계통기술팀
B43: 그리드 적응형 해상풍력 발전단지 전력시스템 설계 및 제어 기술개발 | C43: 수탁 | D43: '11.06. | E43: '16.05. | F43: 계통기술팀 | I43: '11년 신규
B44: 신재생에너지 연계형 ㎿급 리튬이차전지시스템 운용기술 개발 | C44: 수탁 | D44: '11.06. | E44: '14.05. | F44: 계통기술팀 | I44: '11년 신규
F45: 합계 | G45: =SUM(G42:G44) -> 0 | H45: =SUM(H42:H44) -> 0
H47: 4400000
H48: =H47-H31-H38 -> 3392616

Sheet Sheet2
B1: 수행방법
A2: 위탁 | B2: 위탁 | C2: 수탁 | D2: 자체 | E2: 합계
B3: =COUNTIF(현황!#REF!,B2) ->  | C3: =COUNTIF(현황!#REF!,C2) ->  | D3: =COUNTIF(현황!#REF!,D2) ->  | E3: =SUM(B3:D3) -> 
B4: =B3/E3 -> 
B5: 연구기간
B6: 1년 미만 | C6: 1년 이상 2년 미만 | D6: 2년 이상 3년 미만 | E6: 3년이상 | F6: 합계
A7: 전체 | B7: =COUNTIF(현황!#REF!,"<12") ->  | C7: =COUNTIF(현황!#REF!,"<24")-B7 ->  | D7: =COUNTIF(현황!#REF!,"<36")-B7-C7 ->  | E7: =COUNTIF(현황!#REF!,">=36") ->  | F7: =SUM(B7:E7) -> 
A8: 위탁 | B8: =COUNTIFS(현황!#REF!,"위탁",현황!#REF!,"<12") ->  | C8: =COUNTIFS(현황!#REF!,"위탁",현황!#REF!,"<24")-B8 ->  | D8: =COUNTIFS(현황!#REF!,"위탁",현황!#REF!,"<36")-B8-C8 ->  | E8: =COUNTIFS(현황!#REF!,"위탁",현황!#REF!,">=36") ->  | F8: =SUM(B8:E8) -> 
B10: 연구기간
B11: 1년 미만 | C11: 1년 이상 2년 미만 | D11: 2년 이상 3년 미만 | E11: 3년이상 | F11: 합계
B12: =B7/($B$7+$C$7+$D$7+$E$7) ->  | C12: =C7/($B$7+$C$7+$D$7+$E$7) ->  | F12: =SUM(B12:E12) -> 
B13: =B8/F8 ->  | C13: =C8/F8 -> 
B16: 위탁 연구기관
B17: 대학교 | C17: 연구기관 | D17: 기타 | E17: 합계
B18: =COUNTIF(현황!#REF!,Sheet2!B17) ->  | C18: =COUNTIF(현황!#REF!,Sheet2!C17) ->  | D18: =COUNTIF(현황!#REF!,Sheet2!D17) ->  | E18: =SUM(B18:D18) -> 
B19: =B18/E18 ->  | C19: =C18/E18 -> 
B21: 연구분야
B22: 전력계획 | C22: 전력시장 | D22: 계통운영 | E22: 정보기술 | F22: 기타 | G22: 합계
B23: =COUNTIF(현황!#REF!,Sheet2!B22) ->  | C23: =COUNTIF(현황!#REF!,Sheet2!C22) ->  | D23: =COUNTIF(현황!#REF!,Sheet2!D22) ->  | E23: =COUNTIF(현황!#REF!,Sheet2!E22) ->  | F23: =COUNTIF(현황!#REF!,Sheet2!F22) ->  | G23: =SUM(B23:F23) ->  | H23: =H24/G23 -> 
H24: =B23+C23+D23 -> 
B26: 연구비
B27: 1억미만 | C27: 1악-2억미만 | D27: 2억이상 | E27: 합계
B28: =COUNTIFS(현황!#REF!,"위탁",현황!#REF!,"<1")+COUNTIFS(현황!#REF!,"자체",현황!#REF!,"<1") ->  | C28: =COUNTIFS(현황!#REF!,"위탁",현황!#REF!,"<2")-B28+COUNTIFS(현황!#REF!,"자체",현황!#REF!,"<2") ->  | D28: =COUNTIFS(현황!#REF!,"위탁",현황!#REF!,">=2")+COUNTIFS(현황!#REF!,"자체",현황!#REF!,">=2") ->  | E28: =SUM(B28:D28) -> 
B30: '01년 | C30: '02년 | D30: '03년 | E30: '04년 | F30: '05년 | G30: '06년 | H30: '07년 | I30: '08년 | J30: '09년 | K30: '10년 | L30: '11년 | M30: 합계
A31: 건수 | B31: 15 | C31: 3 | D31: 6 | E31: 11 | F31: 7 | G31: 19 | H31: 18 | I31: 13 | J31: 14 | K31: 10 | L31: 26 | M31: =SUM(B31:L31) -> 142
A32: 위탁 | B32: 15 | C32: 3 | D32: 6 | E32: 9 | F32: 5 | G32: 15 | H32: 11 | I32: 9 | J32: 10 | K32: 7 | L32: 18 | M32: =SUM(B32:L32) -> 108
A33: 수탁 | B33: - | C33: - | D33: - | E33: 2 | F33: 2 | G33: 4 | H33: 4 | I33: 4 | J33: 4 | K33: 3 | L33: 8 | M33: =SUM(B33:L33) -> 31
A34: 자체 | B34: - | C34: - | D34: - | E34: - | F34: - | G34: - | H34: 3 | I34: - | J34: - | K34: - | L34: - | M34: 3 | N34: =M32+M33+M34 -> 142
A35: 예산(백만원) | B35: 3944 | C35: 4612 | D35: 1829 | E35: 1527 | F35: 1862 | G35: 2421 | H35: 2121 | I35: 2038 | J35: 2074 | K35: 4612 | L35: 3268 | M35: 백만원
A36: 건당예산 | B36: =B35/B31 -> 262.9333333 | C36: =C35/C31 -> 1537.333333 | D36: =D35/D31 -> 304.8333333 | E36: =E35/E31 -> 138.8181818 | F36: =F35/F31 -> 266 | G36: =G35/G31 -> 127.4210526 | H36: =H35/H31 -> 117.8333333 | I36: =I35/I31 -> 156.7692308 | J36: =J35/J31 -> 148.1428571 | K36: =K35/K31 -> 461.2 | L36: =L35/L31 -> 125.6923077
A37: 총연구기간(개월) | B37: =현황!#REF!+현황!#REF!+현황!#REF!+현황!#REF!+현황!#REF!+현황!#REF!+현황!#REF!+현황!#REF!+현황!#REF!+현황!#REF!+현황!#REF!+현황!#REF!+현황!#REF!+현황!#REF!+현황!#REF! ->  | C37: =현황!#REF!+현황!#REF!+현황!#REF! ->  | D37: =현황!#REF!+현황!#REF!+현황!#REF!+현황!#REF!+현황!#REF!+현황!#REF! ->  | E37: =현황!#REF!+현황!#REF!+현황!#REF!+현황!#REF!+현황!#REF!+현황!#REF!+현황!#REF!+현황!#REF!+현황!#REF!+현황!#REF!+현황!#REF! ->  | F37: =현황!#REF!+현황!#REF!+현황!#REF!+현황!#REF!+현황!#REF!+현황!#REF!+현황!#REF! ->  | G37: =현황!#REF!+현황!#REF!+현황!#REF!+현황!#REF!+현황!#REF!+현황!#REF!+현황!#REF!+현황!#REF!+현황!#REF!+현황!#REF!+현황!#REF!+현황!#REF!+현황!#REF!+현황!#REF!+현황!#REF!+현황!#REF!+현황!#REF!+현황!#REF!+현황!#REF! ->  | H37: =현황!#REF!+현황!#REF!+현황!#REF!+현황!#REF!+현황!#REF!+현황!#REF!+현황!#REF!+현황!#REF!+현황!#REF!+현황!#REF!+현황!#REF!+현황!#REF!+현황!#REF!+현황!#REF!+현황!#REF!+현황!#REF!+현황!#REF!+현황!#REF! ->  | I37: =현황!#REF!+현황!#REF!+현황!#REF!+현황!#REF!+현황!#REF!+현황!#REF!+현황!#REF!+현황!#REF!+현황!#REF!+현황!#REF!+현황!#REF!+현황!#REF!+현황!#REF! ->  | J37: =현황!#REF!+현황!#REF!+현황!#REF!+현황!#REF!+현황!#REF!+현황!#REF!+현황!#REF!+현황!#REF!+현황!#REF!+현황!#REF!+현황!#REF!+현황!#REF!+현황!#REF!+현황!#REF! ->  | K37: =현황!#REF!+현황!#REF!+현황!#REF!+현황!#REF!+현황!#REF!+현황!#REF!+현황!#REF!+현황!#REF!+현황!#REF!+현황!#REF! ->  | L37: =현황!#REF!+현황!#REF!+현황!#REF!+현황!#REF!+현황!#REF!+현황!#REF!+현황!#REF!+현황!#REF!+현황!#REF!+현황!#REF!+현황!#REF!+현황!#REF!+현황!#REF!+현황!#REF!+현황!#REF!+현황!#REF!+현황!#REF!+현황!#REF!+현황!#REF!+현황!#REF!+현황!#REF!+현황!#REF!+현황!#REF!+현황!#REF!+현황!#REF!+현황!#REF! ->  | M37: =SUM(B37:L37) -> 
A38: 위탁 | B38: =현황!#REF!+현황!#REF!+현황!#REF!+현황!#REF!+현황!#REF!+현황!#REF!+현황!#REF!+현황!#REF!+현황!#REF!+현황!#REF!+현황!#REF!+현황!#REF!+현황!#REF!+현황!#REF!+현황!#REF! ->  | C38: =현황!#REF!+현황!#REF!+현황!#REF! ->  | D38: =현황!#REF!+현황!#REF!+현황!#REF!+현황!#REF!+현황!#REF!+현황!#REF! ->  | E38: =현황!#REF!+현황!#REF!+현황!#REF!+현황!#REF!+현황!#REF!+현황!#REF!+현황!#REF!+현황!#REF!+현황!#REF! ->  | F38: =현황!#REF!+현황!#REF!+현황!#REF!+현황!#REF!+현황!#REF! ->  | G38: =현황!#REF!+현황!#REF!+현황!#REF!+현황!#REF!+현황!#REF!+현황!#REF!+현황!#REF!+현황!#REF!+현황!#REF!+현황!#REF!+현황!#REF!+현황!#REF!+현황!#REF!+현황!#REF!+현황!#REF! ->  | H38: =현황!#REF!+현황!#REF!+현황!#REF!+현황!#REF!+현황!#REF!+현황!#REF!+현황!#REF!+현황!#REF!+현황!#REF!+현황!#REF!+현황!#REF! ->  | I38: =현황!#REF!+현황!#REF!+현황!#REF!+현황!#REF!+현황!#REF!+현황!#REF!+현황!#REF!+현황!#REF!+현황!#REF! ->  | J38: =현황!#REF!+현황!#REF!+현황!#REF!+현황!#REF!+현황!#REF!+현황!#REF!+현황!#REF!+현황!#REF!+현황!#REF!+현황!#REF! ->  | K38: =현황!#REF!+현황!#REF!+현황!#REF!+현황!#REF!+현황!#REF!+현황!#REF!+현황!#REF! ->  | L38: =현황!#REF!+현황!#REF!+현황!#REF!+현황!#REF!+현황!#REF!+현황!#REF!+현황!#REF!+현황!#REF!+현황!#REF!+현황!#REF!+현황!#REF!+현황!#REF!+현황!#REF!+현황!#REF!+현황!#REF!+현황!#REF!+현황!#REF!+현황!#REF! ->  | M38: =SUM(B38:L38) -> 
A39: 수탁 | B39: - | C39: - | D39: - | E39: =현황!#REF!+현황!#REF! ->  | F39: =현황!#REF!+현황!#REF! ->  | G39: =현황!#REF!+현황!#REF!+현황!#REF!+현황!#REF! ->  | H39: =현황!#REF!+현황!#REF!+현황!#REF!+현황!#REF! ->  | I39: =현황!#REF!+현황!#REF!+현황!#REF!+현황!#REF! ->  | J39: =현황!#REF!+현황!#REF!+현황!#REF!+현황!#REF! ->  | K39: =현황!#REF!+현황!#REF!+현황!#REF! ->  | L39: =현황!#REF!+현황!#REF!+현황!#REF!+현황!#REF!+현황!#REF!+현황!#REF!+현황!#REF!+현황!#REF! -> 
A40: 자체 | B40: - | C40: - | D40: - | E40: - | F40: - | G40: - | H40: =현황!#REF!+현황!#REF!+현황!#REF! ->  | I40: - | J40: - | K40: - | L40: - | N40: =M38+M39+M40 -> 
A41: 건당연구기간(개월) | B41: =B37/B31 ->  | C41: =C37/C31 ->  | M41: =M37/M31 -> 
A42: 위탁 | B42: =B38/B32 ->  | C42: =C38/C32 -> 
A43: 수탁 | B43: - | C43: - | D43: - | E43: =E39/E33 -> 
A44: 자체 | B44: - | C44: - | D44: - | E44: - | F44: - | G44: - | I44: - | J44: - | K44: - | L44: -
